{"text_format":"1","workbook":"xlsx","n_sheets":3,"sheets":["Projet 1","Table","ressources"],"not_rendered":{"charts":0,"images":1,"macros":1,"external_links":0,"defined_names":6,"comments":0,"pivot_tables":0},"unopened":[],"bounds":{"document_bytes":16777216,"sheet_cells":100000,"rows_first":2000,"rows_last":500,"rows_between":2000,"halvings":0,"cell_chars":16384,"cell_head_chars":4096},"cells_cut":0,"cells_raw":0,"read":"whole","date_system":"1900"}

{"sheet":"Projet 1","index":0,"n_rows":1754,"n_cols":68,"rows_kept":1754,"cut":false,"hidden":false,"merged":[[8,0,9,0],[8,6,9,6],[8,4,9,4],[8,3,9,3],[8,2,9,2],[8,1,9,1],[8,5,9,5],[6,0,6,4],[2,2,2,4],[1,2,1,4],[0,0,0,4],[1,0,1,1],[2,0,2,1],[3,0,3,1],[4,0,4,1],[5,0,5,1]]}
["Détails du projet",null,null,null,null,null,null,0]
["Projet",null,"Planning Methode",null,null,null,null,{"$f":"TODAY()","v":"2015-12-10"}]
["Chef de projet",null,"Bredeche cédric"]
[]
["Jours ouvrés uniquement",null,"OUI"]
["Date de début",null,"2015-12-01"]
["Commentaires",null,null,null,null,null,null,null,{"$f":"C6+H1","v":"2015-12-01"},{"$f":"I7+1","v":"2015-12-02"},{"$f":"J7+1","v":"2015-12-03"},"2015-12-04","2015-12-05","2015-12-06","2015-12-07","2015-12-08","2015-12-09","2015-12-10","2015-12-11","2015-12-12","2015-12-13","2015-12-14","2015-12-15","2015-12-16","2015-12-17","2015-12-18","2015-12-19","2015-12-20","2015-12-21","2015-12-22","2015-12-23","2015-12-24","2015-12-25","2015-12-26","2015-12-27","2015-12-28","2015-12-29","2015-12-30","2015-12-31","2016-01-01","2016-01-02","2016-01-03","2016-01-04","2016-01-05","2016-01-06","2016-01-07","2016-01-08","2016-01-09","2016-01-10","2016-01-11","2016-01-12","2016-01-13","2016-01-14","2016-01-15","2016-01-16","2016-01-17","2016-01-18","2016-01-19","2016-01-20","2016-01-21","2016-01-22","2016-01-23","2016-01-24","2016-01-25","2016-01-26","2016-01-27","2016-01-28","2016-01-29"]
[null,null,null,null,null,null,null,null,{"$f":"\"S \"&WEEKNUM(I7,2)","v":"S 49"},{"$f":"IF(J9=\"L\",\"S \"&WEEKNUM(J7,2),\"\")","v":""},{"$f":"IF(K9=\"L\",\"S \"&WEEKNUM(K7,2),\"\")","v":""},"","","","S 50","","","","","","","S 51","","","","","","","S 52","","","","","","","S 53","","","","","","","S 2","","","","","","","S 3","","","","","","","S 4","","","","","","","S 5","","","",""]
["n°","Tâches","Date de début","Durée","Date de fin","Ressources","Réalisé",null,{"$f":"VLOOKUP(WEEKDAY(I7,2),semaine,2,FALSE)","v":"M"},"M",{"$f":"VLOOKUP(WEEKDAY(K7,2),semaine,2,FALSE)","v":"J"},"V","S","D","L","M","M","J","V","S","D","L","M","M","J","V","S","D","L","M","M","J","V","S","D","L","M","M","J","V","S","D","L","M","M","J","V","S","D","L","M","M","J","V","S","D","L","M","M","J","V","S","D","L","M","M","J","V"]
[null,null,null,null,null,null,null,null,{"$f":"DAY(I7)","v":1},{"$f":"DAY(J7)","v":2},{"$f":"DAY(K7)","v":3},4,5,6,7,8,9,10,11,12,13,14,15,16,17,18,19,20,21,22,23,24,25,26,27,28,29,30,31,1,2,3,4,5,6,7,8,9,10,11,12,13,14,15,16,17,18,19,20,21,22,23,24,25,26,27,28,29]
[null,"EXPLOITATION"]
[1,"Affaire lille site Eurasport"]
[2,"Methode","2015-12-01",{"$f":"E13-C13","v":22},"2015-12-23","Mr bredeche",0.2,{"$f":"C13+G13*(E13-C13)","v":"2015-12-05T09:36:00"}]
["2.1","GMAO",null,{"$f":"E14-C14","v":0},null,null,null,"00:00:00"]
["2.2","Etablissement de la structure de codification",null,0,null,null,null,"00:00:00"]
["2.3","Détermination de la volumétrie de la licence GMAO",null,0,null,null,null,"00:00:00"]
["2.4","Commande de la GMAO",null,0,null,null,null,"00:00:00"]
["2.5","Constitution du fichier d’import des données",null,0,null,null,null,"00:00:00"]
["2.6","Mise à disposition du Sce Méthodes base de données GMAO",null,0,null,null,null,"00:00:00"]
["2.7","Paramétrage et import des données",null,0,null,null,null,"00:00:00"]
["2.8","Réalisation du planning de maintenance préventive",null,0,null,null,null,"00:00:00"]
["2.9","Intégration GMAO du programme préventif",null,0,null,null,null,"00:00:00"]
["2.10","Mise à disposition GMAO",null,0,null,null,null,"00:00:00"]
["2.11","Formation GMAO Personnel Eiffage Services",null,0,null,null,null,"00:00:00"]
["2.12","Formation GMAO Client",null,0,null,null,null,"00:00:00"]
["2.13","Outil Indicateur",null,0,null,null,null,"00:00:00"]
["2.14","Analyse du programme fonctionnel",null,0,null,null,null,"00:00:00"]
["2.15","Choix du type d’outil",null,0,null,null,null,"00:00:00"]
["2.16","Commande outil",null,0,null,null,null,"00:00:00"]
["2.17","Recette Eiffage Services de l’outil",null,0,null,null,null,"00:00:00"]
["2.18","Mise à disposition de l’outil",null,0,null,null,null,"00:00:00"]
["2.19","DEM - Document d’Exploitation Maintenance",null,0,null,null,null,"00:00:00"]
["2.20","Mise à disposition DEM «Type» sur serveur SNTP5018",null,0,null,null,null,"00:00:00"]
["2.21","Adaptation des documents",null,0,null,null,null,"00:00:00"]
["2.22","Intégration des documents dans l’outil de partage avec le Client (GMAO, SharePoint, …)",null,0,null,null,null,"00:00:00",null,null,"  "]
["2.23","Mise à jour du DEM après MAD",null,0,null,null,null,"00:00:00"]
["2.24","DOE",null,0,null,null,null,"00:00:00"]
["2.25","Mise à disposition des DOE au Service Méthodes",null,0,null,null,null,"00:00:00"]
["2.26","Mise à disposition des DOE sur le serveur SNTP5018",null,0,null,null,null,"00:00:00"]
["2.27","Mise à disposition des DOE sur l’outil de partage avec le Client",null,0,null,null,null,"00:00:00"]
["2.28","Informatique site",null,0,null,null,null,"00:00:00"]
["2.29","Détermination des besoins informatiques (infrastructure et machine)",null,0,null,null,null,"00:00:00"]
["2.30","Commande",null,0]
["2.31","Accès serveur SNTP5018",null,0]
[3,"QHSE",null,0]
["3.1","Plan de prévention",null,0]
["3.2","Préparation de la trame + intégration sous-traitants",null,0]
["3.3","Visite préalable commune + signature",null,0]
["3.4","Phase préparatoire Documentation",null,0]
["3.5","PAQSE",null,0]
["3.6","Affichage obligatoire",null,0]
["3.7","Phase préparatoire Exploitation",null,0]
["3.8","Planification formations / habilitations",null,0]
["3.9","Commande des EPI / vêtements de travail",null,0]
["3.10","Accueil Sécurité du personnel",null,0]
["3.11","Test électrique",null,0]
["3.12","Remise livret d’accueil",null,0]
["3.13","Gestion courante",null,0]
["3.14","Suivi des AT",null,0]
["3.15","Actions de prévention / sensibilisation",null,0]
[4,"Référent Technique",null,0]
[5,"Référent Energie",null,{"$f":"E62-C62","v":0}]
[1,"Affaire lille site PFS"]
[2,"Methode",null,0]
["2.1","GMAO",null,0]
["2.2","Etablissement de la structure de codification",null,0]
["2.3","Détermination de la volumétrie de la licence GMAO",null,0]
["2.4","Commande de la GMAO",null,0]
["2.5","Constitution du fichier d’import des données",null,0]
["2.6","Mise à disposition du Sce Méthodes base de données GMAO",null,0]
["2.7","Paramétrage et import des données",null,0]
["2.8","Réalisation du planning de maintenance préventive",null,0]
["2.9","Intégration GMAO du programme préventif",null,0]
["2.10","Mise à disposition GMAO",null,0]
["2.11","Formation GMAO Personnel Eiffage Services",null,0]
["2.12","Formation GMAO Client",null,0]
["2.13","Outil Indicateur",null,0]
["2.14","Analyse du programme fonctionnel",null,0]
["2.15","Choix du type d’outil",null,0]
["2.16","Commande outil",null,0]
["2.17","Recette Eiffage Services de l’outil",null,0]
["2.18","Mise à disposition de l’outil",null,0]
["2.19","DEM - Document d’Exploitation Maintenance",null,0]
["2.20","Mise à disposition DEM «Type» sur serveur SNTP5018",null,0]
["2.21","Adaptation des documents",null,0]
["2.22","Intégration des documents dans l’outil de partage avec le Client (GMAO, SharePoint, …)",null,0]
["2.23","Mise à jour du DEM après MAD",null,0]
["2.24","DOE",null,0]
["2.25","Mise à disposition des DOE au Service Méthodes",null,0]
["2.26","Mise à disposition des DOE sur le serveur SNTP5018",null,0]
["2.27","Mise à disposition des DOE sur l’outil de partage avec le Client",null,0]
["2.28","Informatique site",null,0]
["2.29","Détermination des besoins informatiques (infrastructure et machine)",null,0]
["2.30","Commande",null,0]
["2.31","Accès serveur SNTP5018",null,0]
[3,"QHSE",null,0]
["3.1","Plan de prévention",null,0]
["3.2","Préparation de la trame + intégration sous-traitants",null,0]
["3.3","Visite préalable commune + signature",null,0]
["3.4","Phase préparatoire Documentation",null,0]
["3.5","PAQSE",null,0]
["3.6","Affichage obligatoire",null,0]
["3.7","Phase préparatoire Exploitation",null,0]
["3.8","Planification formations / habilitations",null,0]
["3.9","Commande des EPI / vêtements de travail",null,0]
["3.10","Accueil Sécurité du personnel",null,0]
["3.11","Test électrique",null,0]
["3.12","Remise livret d’accueil",null,0]
["3.13","Gestion courante",null,0]
["3.14","Suivi des AT",null,0]
["3.15","Actions de prévention / sensibilisation",null,0]
[4,"Référent Technique",null,0]
[5,"Référent Energie",null,0]
[1,"Affaire lille site IMMD"]
[2,"Methode",null,0]
["2.1","GMAO",null,0]
["2.2","Etablissement de la structure de codification",null,0]
["2.3","Détermination de la volumétrie de la licence GMAO",null,0]
["2.4","Commande de la GMAO",null,0]
["2.5","Constitution du fichier d’import des données",null,0]
["2.6","Mise à disposition du Sce Méthodes base de données GMAO",null,0]
["2.7","Paramétrage et import des données",null,0]
["2.8","Réalisation du planning de maintenance préventive",null,0]
["2.9","Intégration GMAO du programme préventif",null,0]
["2.10","Mise à disposition GMAO",null,0]
["2.11","Formation GMAO Personnel Eiffage Services",null,{"$f":"E126-C126","v":0}]
["2.12","Formation GMAO Client",null,0]
["2.13","Outil Indicateur",null,0]
["2.14","Analyse du programme fonctionnel",null,0]
["2.15","Choix du type d’outil",null,0]
["2.16","Commande outil",null,0]
["2.17","Recette Eiffage Services de l’outil",null,0]
["2.18","Mise à disposition de l’outil",null,0]
["2.19","DEM - Document d’Exploitation Maintenance",null,0]
["2.20","Mise à disposition DEM «Type» sur serveur SNTP5018",null,0]
["2.21","Adaptation des documents",null,0]
["2.22","Intégration des documents dans l’outil de partage avec le Client (GMAO, SharePoint, …)",null,0]
["2.23","Mise à jour du DEM après MAD",null,0]
["2.24","DOE",null,0]
["2.25","Mise à disposition des DOE au Service Méthodes",null,0]
["2.26","Mise à disposition des DOE sur le serveur SNTP5018",null,0]
["2.27","Mise à disposition des DOE sur l’outil de partage avec le Client",null,0]
["2.28","Informatique site",null,0]
["2.29","Détermination des besoins informatiques (infrastructure et machine)",null,0]
["2.30","Commande",null,0]
["2.31","Accès serveur SNTP5018",null,0]
[3,"QHSE",null,0]
["3.1","Plan de prévention",null,0]
["3.2","Préparation de la trame + intégration sous-traitants",null,0]
["3.3","Visite préalable commune + signature",null,0]
["3.4","Phase préparatoire Documentation",null,0]
["3.5","PAQSE",null,0]
["3.6","Affichage obligatoire",null,0]
["3.7","Phase préparatoire Exploitation",null,0]
["3.8","Planification formations / habilitations",null,0]
["3.9","Commande des EPI / vêtements de travail",null,0]
["3.10","Accueil Sécurité du personnel",null,0]
["3.11","Test électrique",null,0]
["3.12","Remise livret d’accueil",null,0]
["3.13","Gestion courante",null,0]
["3.14","Suivi des AT",null,0]
["3.15","Actions de prévention / sensibilisation",null,0]
[4,"Référent Technique",null,0]
[5,"Référent Energie",null,0]
[1,"Affaire CG93"]
[2,"Methode",null,0]
["2.1","GMAO",null,0]
["2.2","Etablissement de la structure de codification",null,0]
["2.3","Détermination de la volumétrie de la licence GMAO",null,0]
["2.4","Commande de la GMAO",null,0]
["2.5","Constitution du fichier d’import des données",null,0]
["2.6","Mise à disposition du Sce Méthodes base de données GMAO",null,0]
["2.7","Paramétrage et import des données",null,0]
["2.8","Réalisation du planning de maintenance préventive",null,0]
["2.9","Intégration GMAO du programme préventif",null,0]
["2.10","Mise à disposition GMAO",null,0]
["2.11","Formation GMAO Personnel Eiffage Services",null,0]
["2.12","Formation GMAO Client",null,0]
["2.13","Outil Indicateur",null,0]
["2.14","Analyse du programme fonctionnel",null,0]
["2.15","Choix du type d’outil",null,0]
["2.16","Commande outil",null,0]
["2.17","Recette Eiffage Services de l’outil",null,0]
["2.18","Mise à disposition de l’outil",null,0]
["2.19","DEM - Document d’Exploitation Maintenance",null,0]
["2.20","Mise à disposition DEM «Type» sur serveur SNTP5018",null,0]
["2.21","Adaptation des documents",null,0]
["2.22","Intégration des documents dans l’outil de partage avec le Client (GMAO, SharePoint, …)",null,0]
["2.23","Mise à jour du DEM après MAD",null,0]
["2.24","DOE",null,{"$f":"E190-C190","v":0}]
["2.25","Mise à disposition des DOE au Service Méthodes",null,0]
["2.26","Mise à disposition des DOE sur le serveur SNTP5018",null,0]
["2.27","Mise à disposition des DOE sur l’outil de partage avec le Client",null,0]
["2.28","Informatique site",null,0]
["2.29","Détermination des besoins informatiques (infrastructure et machine)",null,0]
["2.30","Commande",null,0]
["2.31","Accès serveur SNTP5018",null,0]
[3,"QHSE",null,0]
["3.1","Plan de prévention",null,0]
["3.2","Préparation de la trame + intégration sous-traitants",null,0]
["3.3","Visite préalable commune + signature",null,0]
["3.4","Phase préparatoire Documentation",null,0]
["3.5","PAQSE",null,0]
["3.6","Affichage obligatoire",null,0]
["3.7","Phase préparatoire Exploitation",null,0]
["3.8","Planification formations / habilitations",null,0]
["3.9","Commande des EPI / vêtements de travail",null,0]
["3.10","Accueil Sécurité du personnel",null,0]
["3.11","Test électrique",null,0]
["3.12","Remise livret d’accueil",null,0]
["3.13","Gestion courante",null,0]
["3.14","Suivi des AT",null,0]
["3.15","Actions de prévention / sensibilisation",null,0]
[4,"Référent Technique",null,0]
[5,"Référent Energie",null,0]
[1,"Affaire Greener"]
[2,"Methode",null,0]
["2.1","GMAO",null,0]
["2.2","Etablissement de la structure de codification",null,0]
["2.3","Détermination de la volumétrie de la licence GMAO",null,0]
["2.4","Commande de la GMAO",null,0]
["2.5","Constitution du fichier d’import des données",null,0]
["2.6","Mise à disposition du Sce Méthodes base de données GMAO",null,0]
["2.7","Paramétrage et import des données",null,0]
["2.8","Réalisation du planning de maintenance préventive",null,0]
["2.9","Intégration GMAO du programme préventif",null,0]
["2.10","Mise à disposition GMAO",null,0]
["2.11","Formation GMAO Personnel Eiffage Services",null,0]
["2.12","Formation GMAO Client",null,0]
["2.13","Outil Indicateur",null,0]
["2.14","Analyse du programme fonctionnel",null,0]
["2.15","Choix du type d’outil",null,0]
["2.16","Commande outil",null,0]
["2.17","Recette Eiffage Services de l’outil",null,0]
["2.18","Mise à disposition de l’outil",null,0]
["2.19","DEM - Document d’Exploitation Maintenance",null,0]
["2.20","Mise à disposition DEM «Type» sur serveur SNTP5018",null,0]
["2.21","Adaptation des documents",null,0]
["2.22","Intégration des documents dans l’outil de partage avec le Client (GMAO, SharePoint, …)",null,0]
["2.23","Mise à jour du DEM après MAD",null,0]
["2.24","DOE",null,0]
["2.25","Mise à disposition des DOE au Service Méthodes",null,0]
["2.26","Mise à disposition des DOE sur le serveur SNTP5018",null,0]
["2.27","Mise à disposition des DOE sur l’outil de partage avec le Client",null,0]
["2.28","Informatique site",null,0]
["2.29","Détermination des besoins informatiques (infrastructure et machine)",null,0]
["2.30","Commande",null,0]
["2.31","Accès serveur SNTP5018",null,0]
[3,"QHSE",null,0]
["3.1","Plan de prévention",null,0]
["3.2","Préparation de la trame + intégration sous-traitants",null,0]
["3.3","Visite préalable commune + signature",null,0]
["3.4","Phase préparatoire Documentation",null,0]
["3.5","PAQSE",null,{"$f":"E254-C254","v":0}]
["3.6","Affichage obligatoire",null,0]
["3.7","Phase préparatoire Exploitation",null,0]
["3.8","Planification formations / habilitations",null,0]
["3.9","Commande des EPI / vêtements de travail",null,0]
["3.10","Accueil Sécurité du personnel",null,0]
["3.11","Test électrique",null,0]
["3.12","Remise livret d’accueil",null,0]
["3.13","Gestion courante",null,0]
["3.14","Suivi des AT",null,0]
["3.15","Actions de prévention / sensibilisation",null,0]
[4,"Référent Technique",null,0]
[5,"Référent Energie",null,0]
[1,"Affaire Jarny"]
[2,"Methode",null,0]
["2.1","GMAO",null,0]
["2.2","Etablissement de la structure de codification",null,0]
["2.3","Détermination de la volumétrie de la licence GMAO",null,0]
["2.4","Commande de la GMAO",null,0]
["2.5","Constitution du fichier d’import des données",null,0]
["2.6","Mise à disposition du Sce Méthodes base de données GMAO",null,0]
["2.7","Paramétrage et import des données",null,0]
["2.8","Réalisation du planning de maintenance préventive",null,0]
["2.9","Intégration GMAO du programme préventif",null,0]
["2.10","Mise à disposition GMAO",null,0]
["2.11","Formation GMAO Personnel Eiffage Services",null,0]
["2.12","Formation GMAO Client",null,0]
["2.13","Outil Indicateur",null,0]
["2.14","Analyse du programme fonctionnel",null,0]
["2.15","Choix du type d’outil",null,0]
["2.16","Commande outil",null,0]
["2.17","Recette Eiffage Services de l’outil",null,0]
["2.18","Mise à disposition de l’outil",null,0]
["2.19","DEM - Document d’Exploitation Maintenance",null,0]
["2.20","Mise à disposition DEM «Type» sur serveur SNTP5018",null,0]
["2.21","Adaptation des documents",null,0]
["2.22","Intégration des documents dans l’outil de partage avec le Client (GMAO, SharePoint, …)",null,0]
["2.23","Mise à jour du DEM après MAD",null,0]
["2.24","DOE",null,0]
["2.25","Mise à disposition des DOE au Service Méthodes",null,0]
["2.26","Mise à disposition des DOE sur le serveur SNTP5018",null,0]
["2.27","Mise à disposition des DOE sur l’outil de partage avec le Client",null,0]
["2.28","Informatique site",null,0]
["2.29","Détermination des besoins informatiques (infrastructure et machine)",null,0]
["2.30","Commande",null,0]
["2.31","Accès serveur SNTP5018",null,0]
[3,"QHSE",null,0]
["3.1","Plan de prévention",null,0]
["3.2","Préparation de la trame + intégration sous-traitants",null,0]
["3.3","Visite préalable commune + signature",null,0]
["3.4","Phase préparatoire Documentation",null,0]
["3.5","PAQSE",null,0]
["3.6","Affichage obligatoire",null,0]
["3.7","Phase préparatoire Exploitation",null,0]
["3.8","Planification formations / habilitations",null,0]
["3.9","Commande des EPI / vêtements de travail",null,0]
["3.10","Accueil Sécurité du personnel",null,0]
["3.11","Test électrique",null,0]
["3.12","Remise livret d’accueil",null,0]
["3.13","Gestion courante",null,0]
["3.14","Suivi des AT",null,0]
["3.15","Actions de prévention / sensibilisation",null,0]
[4,"Référent Technique",null,0]
[5,"Référent Energie",null,0]
[1,"Affaire DGGN"]
[2,"Methode",null,{"$f":"E319-C319","v":0}]
["2.1","GMAO",null,0]
["2.2","Etablissement de la structure de codification",null,0]
["2.3","Détermination de la volumétrie de la licence GMAO",null,0]
["2.4","Commande de la GMAO",null,0]
["2.5","Constitution du fichier d’import des données",null,0]
["2.6","Mise à disposition du Sce Méthodes base de données GMAO",null,0]
["2.7","Paramétrage et import des données",null,0]
["2.8","Réalisation du planning de maintenance préventive",null,0]
["2.9","Intégration GMAO du programme préventif",null,0]
["2.10","Mise à disposition GMAO",null,0]
["2.11","Formation GMAO Personnel Eiffage Services",null,0]
["2.12","Formation GMAO Client",null,0]
["2.13","Outil Indicateur",null,0]
["2.14","Analyse du programme fonctionnel",null,0]
["2.15","Choix du type d’outil",null,0]
["2.16","Commande outil",null,0]
["2.17","Recette Eiffage Services de l’outil",null,0]
["2.18","Mise à disposition de l’outil",null,0]
["2.19","DEM - Document d’Exploitation Maintenance",null,0]
["2.20","Mise à disposition DEM «Type» sur serveur SNTP5018",null,0]
["2.21","Adaptation des documents",null,0]
["2.22","Intégration des documents dans l’outil de partage avec le Client (GMAO, SharePoint, …)",null,0]
["2.23","Mise à jour du DEM après MAD",null,0]
["2.24","DOE",null,0]
["2.25","Mise à disposition des DOE au Service Méthodes",null,0]
["2.26","Mise à disposition des DOE sur le serveur SNTP5018",null,0]
["2.27","Mise à disposition des DOE sur l’outil de partage avec le Client",null,0]
["2.28","Informatique site",null,0]
["2.29","Détermination des besoins informatiques (infrastructure et machine)",null,0]
["2.30","Commande",null,0]
["2.31","Accès serveur SNTP5018",null,0]
[3,"QHSE",null,0]
["3.1","Plan de prévention",null,0]
["3.2","Préparation de la trame + intégration sous-traitants",null,0]
["3.3","Visite préalable commune + signature",null,0]
["3.4","Phase préparatoire Documentation",null,0]
["3.5","PAQSE",null,0]
["3.6","Affichage obligatoire",null,0]
["3.7","Phase préparatoire Exploitation",null,0]
["3.8","Planification formations / habilitations",null,0]
["3.9","Commande des EPI / vêtements de travail",null,0]
["3.10","Accueil Sécurité du personnel",null,0]
["3.11","Test électrique",null,0]
["3.12","Remise livret d’accueil",null,0]
["3.13","Gestion courante",null,0]
["3.14","Suivi des AT",null,0]
["3.15","Actions de prévention / sensibilisation",null,0]
[4,"Référent Technique",null,0]
[5,"Référent Energie",null,0]
[1,"Affaire  PRISON BEZIERS"]
[2,"Methode",null,0]
["2.1","GMAO",null,0]
["2.2","Etablissement de la structure de codification",null,0]
["2.3","Détermination de la volumétrie de la licence GMAO",null,0]
["2.4","Commande de la GMAO",null,0]
["2.5","Constitution du fichier d’import des données",null,0]
["2.6","Mise à disposition du Sce Méthodes base de données GMAO",null,0]
["2.7","Paramétrage et import des données",null,0]
["2.8","Réalisation du planning de maintenance préventive",null,0]
["2.9","Intégration GMAO du programme préventif",null,0]
["2.10","Mise à disposition GMAO",null,0]
["2.11","Formation GMAO Personnel Eiffage Services",null,0]
["2.12","Formation GMAO Client",null,{"$f":"E382-C382","v":0}]
["2.13","Outil Indicateur",null,0]
["2.14","Analyse du programme fonctionnel",null,0]
["2.15","Choix du type d’outil",null,0]
["2.16","Commande outil",null,0]
["2.17","Recette Eiffage Services de l’outil",null,0]
["2.18","Mise à disposition de l’outil",null,0]
["2.19","DEM - Document d’Exploitation Maintenance",null,0]
["2.20","Mise à disposition DEM «Type» sur serveur SNTP5018",null,0]
["2.21","Adaptation des documents",null,0]
["2.22","Intégration des documents dans l’outil de partage avec le Client (GMAO, SharePoint, …)",null,0]
["2.23","Mise à jour du DEM après MAD",null,0]
["2.24","DOE",null,0]
["2.25","Mise à disposition des DOE au Service Méthodes",null,0]
["2.26","Mise à disposition des DOE sur le serveur SNTP5018",null,0]
["2.27","Mise à disposition des DOE sur l’outil de partage avec le Client",null,0]
["2.28","Informatique site",null,0]
["2.29","Détermination des besoins informatiques (infrastructure et machine)",null,0]
["2.30","Commande",null,0]
["2.31","Accès serveur SNTP5018",null,0]
[3,"QHSE",null,0]
["3.1","Plan de prévention",null,0]
["3.2","Préparation de la trame + intégration sous-traitants",null,0]
["3.3","Visite préalable commune + signature",null,0]
["3.4","Phase préparatoire Documentation",null,0]
["3.5","PAQSE",null,0]
["3.6","Affichage obligatoire",null,0]
["3.7","Phase préparatoire Exploitation",null,0]
["3.8","Planification formations / habilitations",null,0]
["3.9","Commande des EPI / vêtements de travail",null,0]
["3.10","Accueil Sécurité du personnel",null,0]
["3.11","Test électrique",null,0]
["3.12","Remise livret d’accueil",null,0]
["3.13","Gestion courante",null,0]
["3.14","Suivi des AT",null,0]
["3.15","Actions de prévention / sensibilisation",null,0]
[4,"Référent Technique",null,0]
[5,"Référent Energie",null,0]
[1,"Affaire  PRISON ROANNE"]
[2,"Methode",null,0]
["2.1","GMAO",null,0]
["2.2","Etablissement de la structure de codification",null,0]
["2.3","Détermination de la volumétrie de la licence GMAO",null,0]
["2.4","Commande de la GMAO",null,0]
["2.5","Constitution du fichier d’import des données",null,0]
["2.6","Mise à disposition du Sce Méthodes base de données GMAO",null,0]
["2.7","Paramétrage et import des données",null,0]
["2.8","Réalisation du planning de maintenance préventive",null,0]
["2.9","Intégration GMAO du programme préventif",null,0]
["2.10","Mise à disposition GMAO",null,0]
["2.11","Formation GMAO Personnel Eiffage Services",null,0]
["2.12","Formation GMAO Client",null,0]
["2.13","Outil Indicateur",null,0]
["2.14","Analyse du programme fonctionnel",null,0]
["2.15","Choix du type d’outil",null,{"$f":"E436-C436","v":0}]
["2.16","Commande outil",null,0]
["2.17","Recette Eiffage Services de l’outil",null,0]
["2.18","Mise à disposition de l’outil",null,0]
["2.19","DEM - Document d’Exploitation Maintenance",null,0]
["2.20","Mise à disposition DEM «Type» sur serveur SNTP5018",null,0]
["2.21","Adaptation des documents",null,0]
["2.22","Intégration des documents dans l’outil de partage avec le Client (GMAO, SharePoint, …)",null,0]
["2.23","Mise à jour du DEM après MAD",null,0]
["2.24","DOE",null,0]
["2.25","Mise à disposition des DOE au Service Méthodes",null,0]
["2.26","Mise à disposition des DOE sur le serveur SNTP5018",null,0]
["2.27","Mise à disposition des DOE sur l’outil de partage avec le Client",null,0]
["2.28","Informatique site",null,0]
["2.29","Détermination des besoins informatiques (infrastructure et machine)",null,0]
["2.30","Commande",null,0]
["2.31","Accès serveur SNTP5018",null,0]
[3,"QHSE",null,0]
["3.1","Plan de prévention",null,0]
["3.2","Préparation de la trame + intégration sous-traitants",null,0]
["3.3","Visite préalable commune + signature",null,0]
["3.4","Phase préparatoire Documentation",null,0]
["3.5","PAQSE",null,0]
["3.6","Affichage obligatoire",null,0]
["3.7","Phase préparatoire Exploitation",null,0]
["3.8","Planification formations / habilitations",null,0]
["3.9","Commande des EPI / vêtements de travail",null,{"$f":"E462-C462","v":0}]
["3.10","Accueil Sécurité du personnel",null,0]
["3.11","Test électrique",null,0]
["3.12","Remise livret d’accueil",null,0]
["3.13","Gestion courante",null,0]
["3.14","Suivi des AT",null,0]
["3.15","Actions de prévention / sensibilisation",null,0]
[4,"Référent Technique",null,0]
[5,"Référent Energie",null,0]
[1,"Affaire  PRISON NANCY"]
[2,"Methode",null,0]
["2.1","GMAO",null,0]
["2.2","Etablissement de la structure de codification",null,0]
["2.3","Détermination de la volumétrie de la licence GMAO",null,0]
["2.4","Commande de la GMAO",null,0]
["2.5","Constitution du fichier d’import des données",null,0]
["2.6","Mise à disposition du Sce Méthodes base de données GMAO",null,0]
["2.7","Paramétrage et import des données",null,0]
["2.8","Réalisation du planning de maintenance préventive",null,0]
["2.9","Intégration GMAO du programme préventif",null,0]
["2.10","Mise à disposition GMAO",null,0]
["2.11","Formation GMAO Personnel Eiffage Services",null,0]
["2.12","Formation GMAO Client",null,0]
["2.13","Outil Indicateur",null,0]
["2.14","Analyse du programme fonctionnel",null,0]
["2.15","Choix du type d’outil",null,0]
["2.16","Commande outil",null,0]
["2.17","Recette Eiffage Services de l’outil",null,0]
["2.18","Mise à disposition de l’outil",null,0]
["2.19","DEM - Document d’Exploitation Maintenance",null,0]
["2.20","Mise à disposition DEM «Type» sur serveur SNTP5018",null,0]
["2.21","Adaptation des documents",null,0]
["2.22","Intégration des documents dans l’outil de partage avec le Client (GMAO, SharePoint, …)",null,0]
["2.23","Mise à jour du DEM après MAD",null,0]
["2.24","DOE",null,0]
["2.25","Mise à disposition des DOE au Service Méthodes",null,0]
["2.26","Mise à disposition des DOE sur le serveur SNTP5018",null,0]
["2.27","Mise à disposition des DOE sur l’outil de partage avec le Client",null,0]
["2.28","Informatique site",null,0]
["2.29","Détermination des besoins informatiques (infrastructure et machine)",null,0]
["2.30","Commande",null,0]
["2.31","Accès serveur SNTP5018",null,0]
[3,"QHSE",null,0]
["3.1","Plan de prévention",null,0]
["3.2","Préparation de la trame + intégration sous-traitants",null,0]
["3.3","Visite préalable commune + signature",null,0]
["3.4","Phase préparatoire Documentation",null,0]
["3.5","PAQSE",null,0]
["3.6","Affichage obligatoire",null,0]
["3.7","Phase préparatoire Exploitation",null,0]
["3.8","Planification formations / habilitations",null,0]
["3.9","Commande des EPI / vêtements de travail",null,0]
["3.10","Accueil Sécurité du personnel",null,0]
["3.11","Test électrique",null,0]
["3.12","Remise livret d’accueil",null,0]
["3.13","Gestion courante",null,0]
["3.14","Suivi des AT",null,0]
["3.15","Actions de prévention / sensibilisation",null,0]
[4,"Référent Technique",null,0]
[5,"Référent Energie",null,0]
[1,"Affaire  PRISON CORBAS"]
[2,"Methode",null,0]
["2.1","GMAO",null,0]
["2.2","Etablissement de la structure de codification",null,0]
["2.3","Détermination de la volumétrie de la licence GMAO",null,{"$f":"E526-C526","v":0}]
["2.4","Commande de la GMAO",null,0]
["2.5","Constitution du fichier d’import des données",null,0]
["2.6","Mise à disposition du Sce Méthodes base de données GMAO",null,0]
["2.7","Paramétrage et import des données",null,0]
["2.8","Réalisation du planning de maintenance préventive",null,0]
["2.9","Intégration GMAO du programme préventif",null,0]
["2.10","Mise à disposition GMAO",null,0]
["2.11","Formation GMAO Personnel Eiffage Services",null,0]
["2.12","Formation GMAO Client",null,0]
["2.13","Outil Indicateur",null,0]
["2.14","Analyse du programme fonctionnel",null,0]
["2.15","Choix du type d’outil",null,0]
["2.16","Commande outil",null,0]
["2.17","Recette Eiffage Services de l’outil",null,0]
["2.18","Mise à disposition de l’outil",null,0]
["2.19","DEM - Document d’Exploitation Maintenance",null,0]
["2.20","Mise à disposition DEM «Type» sur serveur SNTP5018",null,0]
["2.21","Adaptation des documents",null,0]
["2.22","Intégration des documents dans l’outil de partage avec le Client (GMAO, SharePoint, …)",null,0]
["2.23","Mise à jour du DEM après MAD",null,0]
["2.24","DOE",null,0]
["2.25","Mise à disposition des DOE au Service Méthodes",null,0]
["2.26","Mise à disposition des DOE sur le serveur SNTP5018",null,0]
["2.27","Mise à disposition des DOE sur l’outil de partage avec le Client",null,0]
["2.28","Informatique site",null,0]
["2.29","Détermination des besoins informatiques (infrastructure et machine)",null,0]
["2.30","Commande",null,0]
["2.31","Accès serveur SNTP5018",null,0]
[3,"QHSE",null,0]
["3.1","Plan de prévention",null,0]
["3.2","Préparation de la trame + intégration sous-traitants",null,0]
["3.3","Visite préalable commune + signature",null,0]
["3.4","Phase préparatoire Documentation",null,0]
["3.5","PAQSE",null,0]
["3.6","Affichage obligatoire",null,0]
["3.7","Phase préparatoire Exploitation",null,0]
["3.8","Planification formations / habilitations",null,0]
["3.9","Commande des EPI / vêtements de travail",null,0]
["3.10","Accueil Sécurité du personnel",null,0]
["3.11","Test électrique",null,0]
["3.12","Remise livret d’accueil",null,0]
["3.13","Gestion courante",null,0]
["3.14","Suivi des AT",null,0]
["3.15","Actions de prévention / sensibilisation",null,0]
[4,"Référent Technique",null,0]
[5,"Référent Energie",null,0]
[1,"Affaire  HOPTIAL ST NAZAIRE"]
[2,"Methode",null,0]
["2.1","GMAO",null,0]
["2.2","Etablissement de la structure de codification",null,0]
["2.3","Détermination de la volumétrie de la licence GMAO",null,0]
["2.4","Commande de la GMAO",null,0]
["2.5","Constitution du fichier d’import des données",null,0]
["2.6","Mise à disposition du Sce Méthodes base de données GMAO",null,0]
["2.7","Paramétrage et import des données",null,0]
["2.8","Réalisation du planning de maintenance préventive",null,0]
["2.9","Intégration GMAO du programme préventif",null,0]
["2.10","Mise à disposition GMAO",null,0]
["2.11","Formation GMAO Personnel Eiffage Services",null,0]
["2.12","Formation GMAO Client",null,0]
["2.13","Outil Indicateur",null,0]
["2.14","Analyse du programme fonctionnel",null,0]
["2.15","Choix du type d’outil",null,0]
["2.16","Commande outil",null,{"$f":"E590-C590","v":0}]
["2.17","Recette Eiffage Services de l’outil",null,0]
["2.18","Mise à disposition de l’outil",null,0]
["2.19","DEM - Document d’Exploitation Maintenance",null,0]
["2.20","Mise à disposition DEM «Type» sur serveur SNTP5018",null,0]
["2.21","Adaptation des documents",null,0]
["2.22","Intégration des documents dans l’outil de partage avec le Client (GMAO, SharePoint, …)",null,0]
["2.23","Mise à jour du DEM après MAD",null,0]
["2.24","DOE",null,0]
["2.25","Mise à disposition des DOE au Service Méthodes",null,0]
["2.26","Mise à disposition des DOE sur le serveur SNTP5018",null,0]
["2.27","Mise à disposition des DOE sur l’outil de partage avec le Client",null,0]
["2.28","Informatique site",null,0]
["2.29","Détermination des besoins informatiques (infrastructure et machine)",null,0]
["2.30","Commande",null,0]
["2.31","Accès serveur SNTP5018",null,0]
[3,"QHSE",null,0]
["3.1","Plan de prévention",null,0]
["3.2","Préparation de la trame + intégration sous-traitants",null,0]
["3.3","Visite préalable commune + signature",null,0]
["3.4","Phase préparatoire Documentation",null,0]
["3.5","PAQSE",null,0]
["3.6","Affichage obligatoire",null,0]
["3.7","Phase préparatoire Exploitation",null,0]
["3.8","Planification formations / habilitations",null,0]
["3.9","Commande des EPI / vêtements de travail",null,0]
["3.10","Accueil Sécurité du personnel",null,0]
["3.11","Test électrique",null,0]
["3.12","Remise livret d’accueil",null,0]
["3.13","Gestion courante",null,0]
["3.14","Suivi des AT",null,0]
["3.15","Actions de prévention / sensibilisation",null,0]
[4,"Référent Technique",null,0]
[5,"Référent Energie",null,0]
[1,"Affaire  HOPTIAL RENNES"]
[2,"Methode",null,0]
["2.1","GMAO",null,0]
["2.2","Etablissement de la structure de codification",null,0]
["2.3","Détermination de la volumétrie de la licence GMAO",null,0]
["2.4","Commande de la GMAO",null,0]
["2.5","Constitution du fichier d’import des données",null,0]
["2.6","Mise à disposition du Sce Méthodes base de données GMAO",null,0]
["2.7","Paramétrage et import des données",null,0]
["2.8","Réalisation du planning de maintenance préventive",null,0]
["2.9","Intégration GMAO du programme préventif",null,0]
["2.10","Mise à disposition GMAO",null,0]
["2.11","Formation GMAO Personnel Eiffage Services",null,0]
["2.12","Formation GMAO Client",null,0]
["2.13","Outil Indicateur",null,0]
["2.14","Analyse du programme fonctionnel",null,0]
["2.15","Choix du type d’outil",null,0]
["2.16","Commande outil",null,0]
["2.17","Recette Eiffage Services de l’outil",null,0]
["2.18","Mise à disposition de l’outil",null,0]
["2.19","DEM - Document d’Exploitation Maintenance",null,0]
["2.20","Mise à disposition DEM «Type» sur serveur SNTP5018",null,0]
["2.21","Adaptation des documents",null,0]
["2.22","Intégration des documents dans l’outil de partage avec le Client (GMAO, SharePoint, …)",null,0]
["2.23","Mise à jour du DEM après MAD",null,0]
["2.24","DOE",null,0]
["2.25","Mise à disposition des DOE au Service Méthodes",null,0]
["2.26","Mise à disposition des DOE sur le serveur SNTP5018",null,0]
["2.27","Mise à disposition des DOE sur l’outil de partage avec le Client",null,0]
["2.28","Informatique site",null,0]
["2.29","Détermination des besoins informatiques (infrastructure et machine)",null,{"$f":"E654-C654","v":0}]
["2.30","Commande",null,0]
["2.31","Accès serveur SNTP5018",null,0]
[3,"QHSE",null,0]
["3.1","Plan de prévention",null,0]
["3.2","Préparation de la trame + intégration sous-traitants",null,0]
["3.3","Visite préalable commune + signature",null,0]
["3.4","Phase préparatoire Documentation",null,0]
["3.5","PAQSE",null,0]
["3.6","Affichage obligatoire",null,0]
["3.7","Phase préparatoire Exploitation",null,0]
["3.8","Planification formations / habilitations",null,0]
["3.9","Commande des EPI / vêtements de travail",null,0]
["3.10","Accueil Sécurité du personnel",null,0]
["3.11","Test électrique",null,0]
["3.12","Remise livret d’accueil",null,0]
["3.13","Gestion courante",null,0]
["3.14","Suivi des AT",null,0]
["3.15","Actions de prévention / sensibilisation",null,0]
[4,"Référent Technique",null,0]
[5,"Référent Energie",null,0]
[1,"Affaire  HOPITAL CHAL"]
[2,"Methode",null,0]
["2.1","GMAO",null,0]
["2.2","Etablissement de la structure de codification",null,0]
["2.3","Détermination de la volumétrie de la licence GMAO",null,0]
["2.4","Commande de la GMAO",null,0]
["2.5","Constitution du fichier d’import des données",null,0]
["2.6","Mise à disposition du Sce Méthodes base de données GMAO",null,0]
["2.7","Paramétrage et import des données",null,0]
["2.8","Réalisation du planning de maintenance préventive",null,0]
["2.9","Intégration GMAO du programme préventif",null,0]
["2.10","Mise à disposition GMAO",null,0]
["2.11","Formation GMAO Personnel Eiffage Services",null,0]
["2.12","Formation GMAO Client",null,0]
["2.13","Outil Indicateur",null,0]
["2.14","Analyse du programme fonctionnel",null,0]
["2.15","Choix du type d’outil",null,0]
["2.16","Commande outil",null,0]
["2.17","Recette Eiffage Services de l’outil",null,0]
["2.18","Mise à disposition de l’outil",null,0]
["2.19","DEM - Document d’Exploitation Maintenance",null,0]
["2.20","Mise à disposition DEM «Type» sur serveur SNTP5018",null,0]
["2.21","Adaptation des documents",null,0]
["2.22","Intégration des documents dans l’outil de partage avec le Client (GMAO, SharePoint, …)",null,0]
["2.23","Mise à jour du DEM après MAD",null,0]
["2.24","DOE",null,0]
["2.25","Mise à disposition des DOE au Service Méthodes",null,0]
["2.26","Mise à disposition des DOE sur le serveur SNTP5018",null,0]
["2.27","Mise à disposition des DOE sur l’outil de partage avec le Client",null,0]
["2.28","Informatique site",null,0]
["2.29","Détermination des besoins informatiques (infrastructure et machine)",null,0]
["2.30","Commande",null,0]
["2.31","Accès serveur SNTP5018",null,0]
[3,"QHSE",null,0]
["3.1","Plan de prévention",null,0]
["3.2","Préparation de la trame + intégration sous-traitants",null,0]
["3.3","Visite préalable commune + signature",null,0]
["3.4","Phase préparatoire Documentation",null,0]
["3.5","PAQSE",null,0]
["3.6","Affichage obligatoire",null,0]
["3.7","Phase préparatoire Exploitation",null,0]
["3.8","Planification formations / habilitations",null,0]
["3.9","Commande des EPI / vêtements de travail",null,0]
["3.10","Accueil Sécurité du personnel",null,{"$f":"E718-C718","v":0}]
["3.11","Test électrique",null,0]
["3.12","Remise livret d’accueil",null,0]
["3.13","Gestion courante",null,0]
["3.14","Suivi des AT",null,0]
["3.15","Actions de prévention / sensibilisation",null,0]
[4,"Référent Technique",null,0]
[5,"Référent Energie",null,0]
[]
[null,"PRE-EXPLOITATION"]
[1,"Affaire  COLLEGE DU VAR"]
[2,"Methode",null,0]
["2.1","GMAO",null,0]
["2.2","Etablissement de la structure de codification",null,0]
["2.3","Détermination de la volumétrie de la licence GMAO",null,0]
["2.4","Commande de la GMAO",null,0]
["2.5","Constitution du fichier d’import des données",null,0]
["2.6","Mise à disposition du Sce Méthodes base de données GMAO",null,0]
["2.7","Paramétrage et import des données",null,0]
["2.8","Réalisation du planning de maintenance préventive",null,0]
["2.9","Intégration GMAO du programme préventif",null,0]
["2.10","Mise à disposition GMAO",null,0]
["2.11","Formation GMAO Personnel Eiffage Services",null,0]
["2.12","Formation GMAO Client",null,0]
["2.13","Outil Indicateur",null,0]
["2.14","Analyse du programme fonctionnel",null,0]
["2.15","Choix du type d’outil",null,0]
["2.16","Commande outil",null,0]
["2.17","Recette Eiffage Services de l’outil",null,0]
["2.18","Mise à disposition de l’outil",null,0]
["2.19","DEM - Document d’Exploitation Maintenance",null,0]
["2.20","Mise à disposition DEM «Type» sur serveur SNTP5018",null,0]
["2.21","Adaptation des documents",null,0]
["2.22","Intégration des documents dans l’outil de partage avec le Client (GMAO, SharePoint, …)",null,0]
["2.23","Mise à jour du DEM après MAD",null,0]
["2.24","DOE",null,0]
["2.25","Mise à disposition des DOE au Service Méthodes",null,0]
["2.26","Mise à disposition des DOE sur le serveur SNTP5018",null,0]
["2.27","Mise à disposition des DOE sur l’outil de partage avec le Client",null,0]
["2.28","Informatique site",null,0]
["2.29","Détermination des besoins informatiques (infrastructure et machine)",null,0]
["2.30","Commande",null,0]
["2.31","Accès serveur SNTP5018",null,0]
[3,"QHSE",null,0]
["3.1","Plan de prévention",null,0]
["3.2","Préparation de la trame + intégration sous-traitants",null,0]
["3.3","Visite préalable commune + signature",null,0]
["3.4","Phase préparatoire Documentation",null,0]
["3.5","PAQSE",null,0]
["3.6","Affichage obligatoire",null,0]
["3.7","Phase préparatoire Exploitation",null,0]
["3.8","Planification formations / habilitations",null,0]
["3.9","Commande des EPI / vêtements de travail",null,0]
["3.10","Accueil Sécurité du personnel",null,0]
["3.11","Test électrique",null,0]
["3.12","Remise livret d’accueil",null,0]
["3.13","Gestion courante",null,0]
["3.14","Suivi des AT",null,0]
["3.15","Actions de prévention / sensibilisation",null,0]
[4,"Référent Technique",null,0]
[5,"Référent Energie",null,0]
[1,"Affaire  PALAIS DES CONGRES DE METZ"]
[2,"Methode",null,0]
["2.1","GMAO",null,0]
["2.2","Etablissement de la structure de codification",null,{"$f":"E782-C782","v":0}]
["2.3","Détermination de la volumétrie de la licence GMAO",null,0]
["2.4","Commande de la GMAO",null,0]
["2.5","Constitution du fichier d’import des données",null,0]
["2.6","Mise à disposition du Sce Méthodes base de données GMAO",null,0]
["2.7","Paramétrage et import des données",null,0]
["2.8","Réalisation du planning de maintenance préventive",null,0]
["2.9","Intégration GMAO du programme préventif",null,0]
["2.10","Mise à disposition GMAO",null,0]
["2.11","Formation GMAO Personnel Eiffage Services",null,0]
["2.12","Formation GMAO Client",null,0]
["2.13","Outil Indicateur",null,0]
["2.14","Analyse du programme fonctionnel",null,0]
["2.15","Choix du type d’outil",null,0]
["2.16","Commande outil",null,0]
["2.17","Recette Eiffage Services de l’outil",null,0]
["2.18","Mise à disposition de l’outil",null,0]
["2.19","DEM - Document d’Exploitation Maintenance",null,0]
["2.20","Mise à disposition DEM «Type» sur serveur SNTP5018",null,0]
["2.21","Adaptation des documents",null,0]
["2.22","Intégration des documents dans l’outil de partage avec le Client (GMAO, SharePoint, …)",null,0]
["2.23","Mise à jour du DEM après MAD",null,0]
["2.24","DOE",null,0]
["2.25","Mise à disposition des DOE au Service Méthodes",null,0]
["2.26","Mise à disposition des DOE sur le serveur SNTP5018",null,0]
["2.27","Mise à disposition des DOE sur l’outil de partage avec le Client",null,0]
["2.28","Informatique site",null,0]
["2.29","Détermination des besoins informatiques (infrastructure et machine)",null,0]
["2.30","Commande",null,0]
["2.31","Accès serveur SNTP5018",null,0]
[3,"QHSE",null,0]
["3.1","Plan de prévention",null,0]
["3.2","Préparation de la trame + intégration sous-traitants",null,0]
["3.3","Visite préalable commune + signature",null,0]
["3.4","Phase préparatoire Documentation",null,0]
["3.5","PAQSE",null,0]
["3.6","Affichage obligatoire",null,0]
["3.7","Phase préparatoire Exploitation",null,0]
["3.8","Planification formations / habilitations",null,0]
["3.9","Commande des EPI / vêtements de travail",null,0]
["3.10","Accueil Sécurité du personnel",null,0]
["3.11","Test électrique",null,0]
["3.12","Remise livret d’accueil",null,0]
["3.13","Gestion courante",null,0]
["3.14","Suivi des AT",null,0]
["3.15","Actions de prévention / sensibilisation",null,0]
[4,"Référent Technique",null,0]
[5,"Référent Energie",null,0]
[1,"Affaire  UNIVERSITE DE METZ"]
[2,"Methode",null,{"$f":"E831-C831","v":0}]
["2.1","GMAO",null,0]
["2.2","Etablissement de la structure de codification",null,0]
["2.3","Détermination de la volumétrie de la licence GMAO",null,0]
["2.4","Commande de la GMAO",null,0]
["2.5","Constitution du fichier d’import des données",null,0]
["2.6","Mise à disposition du Sce Méthodes base de données GMAO",null,0]
["2.7","Paramétrage et import des données",null,0]
["2.8","Réalisation du planning de maintenance préventive",null,0]
["2.9","Intégration GMAO du programme préventif",null,0]
["2.10","Mise à disposition GMAO",null,0]
["2.11","Formation GMAO Personnel Eiffage Services",null,0]
["2.12","Formation GMAO Client",null,0]
["2.13","Outil Indicateur",null,0]
["2.14","Analyse du programme fonctionnel",null,0]
["2.15","Choix du type d’outil",null,0]
["2.16","Commande outil",null,0]
["2.17","Recette Eiffage Services de l’outil",null,0]
["2.18","Mise à disposition de l’outil",null,0]
["2.19","DEM - Document d’Exploitation Maintenance",null,0]
["2.20","Mise à disposition DEM «Type» sur serveur SNTP5018",null,0]
["2.21","Adaptation des documents",null,0]
["2.22","Intégration des documents dans l’outil de partage avec le Client (GMAO, SharePoint, …)",null,0]
["2.23","Mise à jour du DEM après MAD",null,0]
["2.24","DOE",null,0]
["2.25","Mise à disposition des DOE au Service Méthodes",null,0]
["2.26","Mise à disposition des DOE sur le serveur SNTP5018",null,0]
["2.27","Mise à disposition des DOE sur l’outil de partage avec le Client",null,0]
["2.28","Informatique site",null,0]
["2.29","Détermination des besoins informatiques (infrastructure et machine)",null,0]
["2.30","Commande",null,0]
["2.31","Accès serveur SNTP5018",null,0]
[3,"QHSE",null,0]
["3.1","Plan de prévention",null,0]
["3.2","Préparation de la trame + intégration sous-traitants",null,0]
["3.3","Visite préalable commune + signature",null,0]
["3.4","Phase préparatoire Documentation",null,0]
["3.5","PAQSE",null,0]
["3.6","Affichage obligatoire",null,0]
["3.7","Phase préparatoire Exploitation",null,0]
["3.8","Planification formations / habilitations",null,0]
["3.9","Commande des EPI / vêtements de travail",null,0]
["3.10","Accueil Sécurité du personnel",null,0]
["3.11","Test électrique",null,0]
["3.12","Remise livret d’accueil",null,0]
["3.13","Gestion courante",null,0]
["3.14","Suivi des AT",null,0]
["3.15","Actions de prévention / sensibilisation",null,0]
[4,"Référent Technique",null,0]
[5,"Référent Energie",null,0]
[1,"Affaire  GRANDE ARCHE"]
[2,"Methode",null,{"$f":"E882-C882","v":0}]
["2.1","GMAO",null,0]
["2.2","Etablissement de la structure de codification",null,0]
["2.3","Détermination de la volumétrie de la licence GMAO",null,0]
["2.4","Commande de la GMAO",null,0]
["2.5","Constitution du fichier d’import des données",null,0]
["2.6","Mise à disposition du Sce Méthodes base de données GMAO",null,0]
["2.7","Paramétrage et import des données",null,0]
["2.8","Réalisation du planning de maintenance préventive",null,0]
["2.9","Intégration GMAO du programme préventif",null,0]
["2.10","Mise à disposition GMAO",null,0]
["2.11","Formation GMAO Personnel Eiffage Services",null,0]
["2.12","Formation GMAO Client",null,0]
["2.13","Outil Indicateur",null,0]
["2.14","Analyse du programme fonctionnel",null,0]
["2.15","Choix du type d’outil",null,0]
["2.16","Commande outil",null,0]
["2.17","Recette Eiffage Services de l’outil",null,0]
["2.18","Mise à disposition de l’outil",null,0]
["2.19","DEM - Document d’Exploitation Maintenance",null,0]
["2.20","Mise à disposition DEM «Type» sur serveur SNTP5018",null,0]
["2.21","Adaptation des documents",null,0]
["2.22","Intégration des documents dans l’outil de partage avec le Client (GMAO, SharePoint, …)",null,0]
["2.23","Mise à jour du DEM après MAD",null,0]
["2.24","DOE",null,0]
["2.25","Mise à disposition des DOE au Service Méthodes",null,0]
["2.26","Mise à disposition des DOE sur le serveur SNTP5018",null,0]
["2.27","Mise à disposition des DOE sur l’outil de partage avec le Client",null,0]
["2.28","Informatique site",null,{"$f":"E910-C910","v":0}]
["2.29","Détermination des besoins informatiques (infrastructure et machine)",null,0]
["2.30","Commande",null,0]
["2.31","Accès serveur SNTP5018",null,0]
[3,"QHSE",null,0]
["3.1","Plan de prévention",null,0]
["3.2","Préparation de la trame + intégration sous-traitants",null,0]
["3.3","Visite préalable commune + signature",null,0]
["3.4","Phase préparatoire Documentation",null,0]
["3.5","PAQSE",null,0]
["3.6","Affichage obligatoire",null,0]
["3.7","Phase préparatoire Exploitation",null,0]
["3.8","Planification formations / habilitations",null,0]
["3.9","Commande des EPI / vêtements de travail",null,0]
["3.10","Accueil Sécurité du personnel",null,0]
["3.11","Test électrique",null,0]
["3.12","Remise livret d’accueil",null,0]
["3.13","Gestion courante",null,0]
["3.14","Suivi des AT",null,0]
["3.15","Actions de prévention / sensibilisation",null,0]
[4,"Référent Technique",null,0]
[5,"Référent Energie",null,0]
[]
[null,"DEVELOPEMENT"]
[null,null,null,0]
[null,null,null,0]
[null,null,null,0]
[null,null,null,0]
[null,null,null,0]
[null,null,null,0]
[null,null,null,0]
[null,null,null,0]
[null,null,null,0]
[null,null,null,0]
[null,null,null,0]
[null,null,null,0]
[null,null,null,0]
[null,null,null,0]
[null,null,null,0]
[null,null,null,0]
[null,null,null,0]
[null,null,null,0]
[null,null,null,0]
[null,null,null,0]
[null,null,null,0]
[null,null,null,0]
[null,null,null,0]
[null,null,null,0]
[null,null,null,0]
[null,null,null,0]
[null,null,null,0]
[null,null,null,0]
[null,null,null,0]
[null,null,null,0]
[null,null,null,0]
[null,null,null,0]
[null,null,null,0]
[null,null,null,0]
[null,null,null,0]
[null,null,null,0]
[null,null,null,0]
[null,null,null,0]
[null,null,null,0]
[null,null,null,0]
[null,null,null,{"$f":"E974-C974","v":0}]
[null,null,null,0]
[null,null,null,0]
[null,null,null,0]
[null,null,null,0]
[null,null,null,0]
[null,null,null,0]
[null,null,null,0]
[null,null,null,0]
[null,null,null,0]
[null,null,null,0]
[null,null,null,0]
[null,null,null,0]
[null,null,null,0]
[null,null,null,0]
[null,null,null,0]
[null,null,null,0]
[null,null,null,0]
[null,null,null,0]
[null,null,null,0]
[null,null,null,0]
[null,null,null,0]
[null,null,null,0]
[null,null,null,0]
[null,null,null,0]
[null,null,null,0]
[null,null,null,0]
[null,null,null,0]
[null,null,null,0]
[null,null,null,0]
[null,null,null,0]
[null,null,null,0]
[null,null,null,0]
[null,null,null,0]
[null,null,null,0]
[null,null,null,0]
[null,null,null,0]
[null,null,null,0]
[null,null,null,0]
[null,null,null,0]
[null,null,null,0]
[null,null,null,0]
[null,null,null,0]
[null,null,null,0]
[null,null,null,0]
[null,null,null,0]
[null,null,null,0]
[null,null,null,0]
[null,null,null,0]
[null,null,null,0]
[null,null,null,0]
[null,null,null,0]
[null,null,null,0]
[null,null,null,0]
[null,null,null,0]
[null,null,null,0]
[null,null,null,0]
[null,null,null,0]
[null,null,null,0]
[null,null,null,0]
[null,null,null,0]
[null,null,null,0]
[null,null,null,0]
[null,null,null,0]
[null,null,null,{"$f":"E1038-C1038","v":0}]
[null,null,null,0]
[null,null,null,0]
[null,null,null,0]
[null,null,null,0]
[null,null,null,0]
[null,null,null,0]
[null,null,null,0]
[null,null,null,0]
[null,null,null,0]
[null,null,null,0]
[null,null,null,0]
[null,null,null,0]
[null,null,null,0]
[null,null,null,0]
[null,null,null,0]
[null,null,null,0]
[null,null,null,0]
[null,null,null,0]
[null,null,null,0]
[null,null,null,0]
[null,null,null,0]
[null,null,null,0]
[null,null,null,0]
[null,null,null,0]
[null,null,null,0]
[null,null,null,0]
[null,null,null,0]
[null,null,null,0]
[null,null,null,0]
[null,null,null,0]
[null,null,null,0]
[null,null,null,0]
[null,null,null,0]
[null,null,null,0]
[null,null,null,0]
[null,null,null,0]
[null,null,null,0]
[null,null,null,0]
[null,null,null,0]
[null,null,null,0]
[null,null,null,0]
[null,null,null,0]
[null,null,null,0]
[null,null,null,0]
[null,null,null,0]
[null,null,null,0]
[null,null,null,0]
[null,null,null,0]
[null,null,null,0]
[null,null,null,0]
[null,null,null,0]
[null,null,null,0]
[null,null,null,0]
[null,null,null,0]
[null,null,null,0]
[null,null,null,0]
[null,null,null,0]
[null,null,null,0]
[null,null,null,0]
[null,null,null,0]
[null,null,null,0]
[null,null,null,0]
[null,null,null,0]
[null,null,null,{"$f":"E1102-C1102","v":0}]
[null,null,null,0]
[null,null,null,0]
[null,null,null,0]
[null,null,null,0]
[null,null,null,0]
[null,null,null,0]
[null,null,null,0]
[null,null,null,0]
[null,null,null,0]
[null,null,null,0]
[null,null,null,0]
[null,null,null,0]
[null,null,null,0]
[null,null,null,0]
[null,null,null,0]
[null,null,null,0]
[null,null,null,0]
[null,null,null,0]
[null,null,null,0]
[null,null,null,0]
[null,null,null,0]
[null,null,null,0]
[null,null,null,0]
[null,null,null,0]
[null,null,null,0]
[null,null,null,0]
[null,null,null,0]
[null,null,null,0]
[null,null,null,0]
[null,null,null,0]
[null,null,null,0]
[null,null,null,0]
[null,null,null,0]
[null,null,null,0]
[null,null,null,0]
[null,null,null,0]
[null,null,null,0]
[null,null,null,0]
[null,null,null,0]
[null,null,null,0]
[null,null,null,0]
[null,null,null,0]
[null,null,null,0]
[null,null,null,0]
[null,null,null,0]
[null,null,null,0]
[null,null,null,0]
[null,null,null,0]
[null,null,null,0]
[null,null,null,0]
[null,null,null,0]
[null,null,null,0]
[null,null,null,0]
[null,null,null,0]
[null,null,null,0]
[null,null,null,0]
[null,null,null,0]
[null,null,null,0]
[null,null,null,0]
[null,null,null,0]
[null,null,null,0]
[null,null,null,0]
[null,null,null,0]
[null,null,null,{"$f":"E1166-C1166","v":0}]
[null,null,null,0]
[null,null,null,0]
[null,null,null,0]
[null,null,null,0]
[null,null,null,0]
[null,null,null,0]
[null,null,null,0]
[null,null,null,0]
[null,null,null,0]
[null,null,null,0]
[null,null,null,0]
[null,null,null,0]
[null,null,null,0]
[null,null,null,0]
[null,null,null,0]
[null,null,null,0]
[null,null,null,0]
[null,null,null,0]
[null,null,null,0]
[null,null,null,0]
[null,null,null,0]
[null,null,null,0]
[null,null,null,0]
[null,null,null,0]
[null,null,null,0]
[null,null,null,0]
[null,null,null,0]
[null,null,null,0]
[null,null,null,0]
[null,null,null,0]
[null,null,null,0]
[null,null,null,0]
[null,null,null,0]
[null,null,null,0]
[null,null,null,0]
[null,null,null,0]
[null,null,null,0]
[null,null,null,0]
[null,null,null,0]
[null,null,null,0]
[null,null,null,0]
[null,null,null,0]
[null,null,null,0]
[null,null,null,0]
[null,null,null,0]
[null,null,null,0]
[null,null,null,0]
[null,null,null,0]
[null,null,null,0]
[null,null,null,0]
[null,null,null,0]
[null,null,null,0]
[null,null,null,0]
[null,null,null,0]
[null,null,null,0]
[null,null,null,0]
[null,null,null,0]
[null,null,null,0]
[null,null,null,0]
[null,null,null,0]
[null,null,null,0]
[null,null,null,0]
[null,null,null,0]
[null,null,null,{"$f":"E1230-C1230","v":0}]
[null,null,null,0]
[null,null,null,0]
[null,null,null,0]
[null,null,null,0]
[null,null,null,0]
[null,null,null,0]
[null,null,null,0]
[null,null,null,0]
[null,null,null,0]
[null,null,null,0]
[null,null,null,0]
[null,null,null,0]
[null,null,null,0]
[null,null,null,0]
[null,null,null,0]
[null,null,null,0]
[null,null,null,0]
[null,null,null,0]
[null,null,null,0]
[null,null,null,0]
[null,null,null,0]
[null,null,null,0]
[null,null,null,0]
[null,null,null,0]
[null,null,null,0]
[null,null,null,0]
[null,null,null,0]
[null,null,null,0]
[null,null,null,0]
[null,null,null,0]
[null,null,null,0]
[null,null,null,0]
[null,null,null,0]
[null,null,null,0]
[null,null,null,0]
[null,null,null,0]
[null,null,null,0]
[null,null,null,0]
[null,null,null,0]
[null,null,null,0]
[null,null,null,0]
[null,null,null,0]
[null,null,null,0]
[null,null,null,0]
[null,null,null,0]
[null,null,null,0]
[null,null,null,0]
[null,null,null,0]
[null,null,null,0]
[null,null,null,0]
[null,null,null,0]
[null,null,null,0]
[null,null,null,0]
[null,null,null,0]
[null,null,null,0]
[null,null,null,0]
[null,null,null,0]
[null,null,null,0]
[null,null,null,0]
[null,null,null,0]
[null,null,null,0]
[null,null,null,0]
[null,null,null,0]
[null,null,null,{"$f":"E1294-C1294","v":0}]
[null,null,null,0]
[null,null,null,0]
[null,null,null,0]
[null,null,null,0]
[null,null,null,0]
[null,null,null,0]
[null,null,null,0]
[null,null,null,0]
[null,null,null,0]
[null,null,null,0]
[null,null,null,0]
[null,null,null,0]
[null,null,null,0]
[null,null,null,0]
[null,null,null,0]
[null,null,null,0]
[null,null,null,0]
[null,null,null,0]
[null,null,null,0]
[null,null,null,0]
[null,null,null,0]
[null,null,null,0]
[null,null,null,0]
[null,null,null,0]
[null,null,null,0]
[null,null,null,0]
[null,null,null,0]
[null,null,null,0]
[null,null,null,0]
[null,null,null,0]
[null,null,null,0]
[null,null,null,0]
[null,null,null,0]
[null,null,null,0]
[null,null,null,0]
[null,null,null,0]
[null,null,null,0]
[null,null,null,0]
[null,null,null,0]
[null,null,null,0]
[null,null,null,0]
[null,null,null,0]
[null,null,null,0]
[null,null,null,0]
[null,null,null,0]
[null,null,null,0]
[null,null,null,0]
[null,null,null,0]
[null,null,null,0]
[null,null,null,0]
[null,null,null,0]
[null,null,null,0]
[null,null,null,0]
[null,null,null,0]
[null,null,null,0]
[null,null,null,0]
[null,null,null,0]
[null,null,null,0]
[null,null,null,0]
[null,null,null,0]
[null,null,null,0]
[null,null,null,0]
[null,null,null,0]
[null,null,null,{"$f":"E1358-C1358","v":0}]
[null,null,null,0]
[null,null,null,0]
[null,null,null,0]
[null,null,null,0]
[null,null,null,0]
[null,null,null,0]
[null,null,null,0]
[null,null,null,0]
[null,null,null,0]
[null,null,null,0]
[null,null,null,0]
[null,null,null,0]
[null,null,null,0]
[null,null,null,0]
[null,null,null,0]
[null,null,null,0]
[null,null,null,0]
[null,null,null,0]
[null,null,null,0]
[null,null,null,0]
[null,null,null,0]
[null,null,null,0]
[null,null,null,0]
[null,null,null,0]
[null,null,null,0]
[null,null,null,0]
[null,null,null,0]
[null,null,null,0]
[null,null,null,0]
[null,null,null,0]
[null,null,null,0]
[null,null,null,0]
[null,null,null,0]
[null,null,null,0]
[null,null,null,0]
[null,null,null,0]
[null,null,null,0]
[null,null,null,0]
[null,null,null,0]
[null,null,null,0]
[null,null,null,0]
[null,null,null,0]
[null,null,null,0]
[null,null,null,0]
[null,null,null,0]
[null,null,null,0]
[null,null,null,0]
[null,null,null,0]
[null,null,null,0]
[null,null,null,0]
[null,null,null,0]
[null,null,null,0]
[null,null,null,0]
[null,null,null,0]
[null,null,null,0]
[null,null,null,0]
[null,null,null,0]
[null,null,null,0]
[null,null,null,0]
[null,null,null,0]
[null,null,null,0]
[null,null,null,0]
[null,null,null,0]
[null,null,null,{"$f":"E1422-C1422","v":0}]
[null,null,null,0]
[null,null,null,0]
[null,null,null,0]
[null,null,null,0]
[null,null,null,0]
[null,null,null,0]
[null,null,null,0]
[null,null,null,0]
[null,null,null,0]
[null,null,null,0]
[null,null,null,0]
[null,null,null,0]
[null,null,null,0]
[null,null,null,0]
[null,null,null,0]
[null,null,null,0]
[null,null,null,0]
[null,null,null,0]
[null,null,null,0]
[null,null,null,0]
[null,null,null,0]
[null,null,null,0]
[null,null,null,0]
[null,null,null,0]
[null,null,null,0]
[null,null,null,0]
[null,null,null,0]
[null,null,null,0]
[null,null,null,0]
[null,null,null,0]
[null,null,null,0]
[null,null,null,0]
[null,null,null,0]
[null,null,null,0]
[null,null,null,0]
[null,null,null,0]
[null,null,null,0]
[null,null,null,0]
[null,null,null,0]
[null,null,null,0]
[null,null,null,0]
[null,null,null,0]
[null,null,null,0]
[null,null,null,0]
[null,null,null,0]
[null,null,null,0]
[null,null,null,0]
[null,null,null,0]
[null,null,null,0]
[null,null,null,0]
[null,null,null,0]
[null,null,null,0]
[null,null,null,0]
[null,null,null,0]
[null,null,null,0]
[null,null,null,0]
[null,null,null,0]
[null,null,null,0]
[null,null,null,0]
[null,null,null,0]
[null,null,null,0]
[null,null,null,0]
[null,null,null,0]
[null,null,null,{"$f":"E1486-C1486","v":0}]
[null,null,null,0]
[null,null,null,0]
[null,null,null,0]
[null,null,null,0]
[null,null,null,0]
[null,null,null,0]
[null,null,null,0]
[null,null,null,0]
[null,null,null,0]
[null,null,null,0]
[null,null,null,0]
[null,null,null,0]
[null,null,null,0]
[null,null,null,0]
[null,null,null,0]
[null,null,null,0]
[null,null,null,0]
[null,null,null,0]
[null,null,null,0]
[null,null,null,0]
[null,null,null,0]
[null,null,null,0]
[null,null,null,0]
[null,null,null,0]
[null,null,null,0]
[null,null,null,0]
[null,null,null,0]
[null,null,null,0]
[null,null,null,0]
[null,null,null,0]
[null,null,null,0]
[null,null,null,0]
[null,null,null,0]
[null,null,null,0]
[null,null,null,0]
[null,null,null,0]
[null,null,null,0]
[null,null,null,0]
[null,null,null,0]
[null,null,null,0]
[null,null,null,0]
[null,null,null,0]
[null,null,null,0]
[null,null,null,0]
[null,null,null,0]
[null,null,null,0]
[null,null,null,0]
[null,null,null,0]
[null,null,null,0]
[null,null,null,0]
[null,null,null,0]
[null,null,null,0]
[null,null,null,0]
[null,null,null,0]
[null,null,null,0]
[null,null,null,0]
[null,null,null,0]
[null,null,null,0]
[null,null,null,0]
[null,null,null,0]
[null,null,null,0]
[null,null,null,0]
[null,null,null,0]
[null,null,null,{"$f":"E1550-C1550","v":0}]
[null,null,null,0]
[null,null,null,0]
[null,null,null,0]
[null,null,null,0]
[null,null,null,0]
[null,null,null,0]
[null,null,null,0]
[null,null,null,0]
[null,null,null,0]
[null,null,null,0]
[null,null,null,0]
[null,null,null,0]
[null,null,null,0]
[null,null,null,0]
[null,null,null,0]
[null,null,null,0]
[null,null,null,0]
[null,null,null,0]
[null,null,null,0]
[null,null,null,0]
[null,null,null,0]
[null,null,null,0]
[null,null,null,0]
[null,null,null,0]
[null,null,null,0]
[null,null,null,0]
[null,null,null,0]
[null,null,null,0]
[null,null,null,0]
[null,null,null,0]
[null,null,null,0]
[null,null,null,0]
[null,null,null,0]
[null,null,null,0]
[null,null,null,0]
[null,null,null,0]
[null,null,null,0]
[null,null,null,0]
[null,null,null,0]
[null,null,null,0]
[null,null,null,0]
[null,null,null,0]
[null,null,null,0]
[null,null,null,0]
[null,null,null,0]
[null,null,null,0]
[null,null,null,0]
[null,null,null,0]
[null,null,null,0]
[null,null,null,0]
[null,null,null,0]
[null,null,null,0]
[null,null,null,0]
[null,null,null,0]
[null,null,null,0]
[null,null,null,0]
[null,null,null,0]
[null,null,null,0]
[null,null,null,0]
[null,null,null,0]
[null,null,null,0]
[null,null,null,0]
[null,null,null,0]
[null,null,null,{"$f":"E1614-C1614","v":0}]
[null,null,null,0]
[null,null,null,0]
[null,null,null,0]
[null,null,null,0]
[null,null,null,0]
[null,null,null,0]
[null,null,null,0]
[null,null,null,0]
[null,null,null,0]
[null,null,null,0]
[null,null,null,0]
[null,null,null,0]
[null,null,null,0]
[null,null,null,0]
[null,null,null,0]
[null,null,null,0]
[null,null,null,0]
[null,null,null,0]
[null,null,null,0]
[null,null,null,0]
[null,null,null,0]
[null,null,null,0]
[null,null,null,0]
[null,null,null,0]
[null,null,null,0]
[null,null,null,0]
[null,null,null,0]
[null,null,null,0]
[null,null,null,0]
[null,null,null,0]
[null,null,null,0]
[null,null,null,0]
[null,null,null,0]
[null,null,null,0]
[null,null,null,0]
[null,null,null,0]
[null,null,null,0]
[null,null,null,0]
[null,null,null,0]
[null,null,null,0]
[null,null,null,0]
[null,null,null,0]
[null,null,null,0]
[null,null,null,0]
[null,null,null,0]
[null,null,null,0]
[null,null,null,0]
[null,null,null,0]
[null,null,null,0]
[null,null,null,0]
[null,null,null,0]
[null,null,null,0]
[null,null,null,0]
[null,null,null,0]
[null,null,null,0]
[null,null,null,0]
[null,null,null,0]
[null,null,null,0]
[null,null,null,0]
[null,null,null,0]
[null,null,null,0]
[null,null,null,0]
[null,null,null,0]
[null,null,null,{"$f":"E1678-C1678","v":0}]
[null,null,null,0]
[null,null,null,0]
[null,null,null,0]
[null,null,null,0]
[null,null,null,0]
[null,null,null,0]
[null,null,null,0]
[null,null,null,0]
[null,null,null,0]
[null,null,null,0]
[null,null,null,0]
[null,null,null,0]
[null,null,null,0]
[null,null,null,0]
[null,null,null,0]
[null,null,null,0]
[null,null,null,0]
[null,null,null,0]
[null,null,null,0]
[null,null,null,0]
[null,null,null,0]
[null,null,null,0]
[null,null,null,0]
[null,null,null,0]
[null,null,null,0]
[null,null,null,0]
[null,null,null,0]
[null,null,null,0]
[null,null,null,0]
[null,null,null,0]
[null,null,null,0]
[null,null,null,0]
[null,null,null,0]
[null,null,null,0]
[null,null,null,0]
[null,null,null,0]
[null,null,null,0]
[null,null,null,0]
[null,null,null,0]
[null,null,null,0]
[null,null,null,0]
[null,null,null,0]
[null,null,null,0]
[null,null,null,0]
[null,null,null,0]
[null,null,null,0]
[null,null,null,0]
[null,null,null,0]
[null,null,null,0]
[null,null,null,0]
[null,null,null,0]
[null,null,null,0]
[null,null,null,0]
[null,null,null,0]
[null,null,null,0]
[null,null,null,0]
[null,null,null,0]
[null,null,null,0]
[null,null,null,0]
[null,null,null,0]
[null,null,null,0]
[null,null,null,0]
[null,null,null,0]
[null,null,null,{"$f":"E1742-C1742","v":0}]
[null,null,null,0]
[null,null,null,0]
[null,null,null,0]
[null,null,null,0]
[null,null,null,0]
[null,null,null,0]
[null,null,null,0]
[null,null,null,0]
[null,null,null,0]
[null,null,null,0]
[null,null,null,0]
[null,null,null,0]

{"sheet":"Table","index":1,"n_rows":7,"n_cols":4,"rows_kept":7,"cut":false,"hidden":true,"merged":[]}
[1,"L",null,"OUI"]
[2,"M",null,"NON"]
[3,"M"]
[4,"J"]
[5,"V"]
[6,"S"]
[7,"D"]

{"sheet":"ressources","index":2,"n_rows":11,"n_cols":4,"rows_kept":11,"cut":false,"hidden":true,"merged":[]}
[]
["Mr bayle",null,null,0.1]
["Mr bredeche",null,null,{"$f":"D2+10%","v":0.2}]
["Mme Boningues",null,null,{"$f":"D3+10%","v":0.30000000000000004}]
["Mr Delahaye",null,null,0.4]
["Mr Dusseau",null,null,0.5]
["Mr Julien",null,null,0.6]
[null,null,null,0.7]
[null,null,null,0.79999999999999993]
[null,null,null,0.89999999999999991]
[null,null,null,0.99999999999999989]